Cogmind - Beta 16 --- EXPLORER MODE // 2025.12.10 @ 12:08:48 Player: K.K.Y. Result: Destroyed by ZX-6HQ(R) with Subdweller Beam Cannon Performance ------------- Evolutions (0) 0 Regions Visited (3) 600 Robots Destroyed (49) 245 Value Destroyed (1111) 1111 Prototype IDs (12) 240 Alien Tech Used (0) 0 Bonus (7) 7 TOTAL SCORE: 2203 Bonus ------- Follower Combat Kills 7 Cogmind --------- Core Integrity 0/250 Matter 290/300 Energy 20/100 System Corruption 0% Temperature Cool (9) Movement Flying (44) Location -10/Subcaves Parts ------- > --- POWER (1+1) ------ (None) > --- PROPULSION (3) --- Flight Unit Makeshift Flight Unit > --- UTILITY (2) ------ Signal Interpreter > --- WEAPON (2) ------- Powered Cannon > --- INVENTORY (5) ---- Huge Storage Unit Sensor Array Improved Terrain Scanner Heavy Riot Gun Barrage Gun Peak State ------------ > --- POWER ------------ (None) > --- PROPULSION ------- Flight Unit Makeshift Flight Unit > --- UTILITY ---------- Signal Interpreter > --- WEAPON ----------- Powered Cannon > --- INVENTORY -------- Huge Storage Unit Sensor Array Improved Terrain Scanner Subdweller Laser Barrage Gun [Rating: 21] Favorites ----------- Power Light Nuclear Core Engine Light Ion Engine Power Core Light Nuclear Core Propulsion Flight Unit Wheel Wheel Hover Unit Hover Unit Flight Unit Flight Unit Utility Signal Interpreter Device Structural Scanner Storage High-capacity Storage Unit Processor Signal Interpreter Weapon Spread Laser Energy Gun Spread Laser Energy Cannon Subdweller Beam Cannon Special Weapon Mining Laser Build | -11 -10 -10 -10 ------- Run | Yrd Mat Min Sub Slots Evolved 1 | . 1 . . Power . | . . . . Propulsion 1 | . 1 . . Utility . | . . . . Weapon . | . . . . Parts Attached 36 | 5 11 7 13 Power 3 | 1 2 . . Engine 2 | 1 1 . . Core 1 | . 1 . . Reactor . | . . . . Propulsion 17 | 2 4 5 6 Treads . | . . . . Leg . | . . . . Wheel 2 | 2 . . . Hover 2 | . 2 . . Flight 13 | . 2 5 6 Utility 5 | . 3 2 . Device 2 | . 1 1 . Storage 2 | . 2 . . Processor 1 | . . 1 . Hackware . | . . . . Protection . | . . . . Artifact . | . . . . Weapon 11 | 2 2 . 7 Energy Gun 8 | 2 2 . 4 Energy Cannon 2 | . . . 2 Ballistic Gun . | . . . . Ballistic Cannon . | . . . . Launcher . | . . . . Special Weapon 1 | . . . 1 Impact Weapon . | . . . . Slashing Weapon . | . . . . Piercing Weapon . | . . . . Special Melee Weapon . | . . . . Unidentified Prototypes . | . . . . Parts Lost 12 | . 2 . 10 Power 2 | . 1 . 1 Propulsion 5 | . . . 5 Utility 1 | . . . 1 Weapon 4 | . 1 . 3 Highest Loss Streak 4 | . 1 . 4 To Critical Strikes . | . . . . Average Backups 4 | 3 4 5 4 Power . | 1 . . . Propulsion . | . . . . Utility 3 | 2 3 3 3 Weapon 1 | . 1 1 1 Tool/Special . | . . . . Unused Backups 6 | 1 1 . 4 Power 1 | 1 . . . Propulsion . | . . . . Utility 2 | . 1 . 1 Weapon 3 | . . . 3 Tool/Special . | . . . . Average Slot Usage (%) 70 | . 70 97 62 Engine 2 | . 5 . . Core 3 | . 1 12 2 Wheel 3 | . 8 . . Hover 3 | . 7 2 . Flight 22 | . 15 34 26 Device 5 | . 8 12 1 Processor 6 | . . 9 11 Energy Gun 21 | . 24 25 16 Energy Cannon 1 | . . . 2 Peak Build Rating 21 | 5 11 12 21 Average Rating 9 | 2 7 11 11 On Entrance 7 | . 5 11 12 Avg Prop Armor Cover (%) 6 | . 6 7 . Naked Turns . | . . . . Heaviest Build 13 | 7 12 13 12 Greatest Support 20 | 20 20 12 16 Greatest Overweight (x) 2 | 1 2 1 2 Average Overweight (x) . | . . . . Largest Inventory Capacity 25 | 5 25 5 5 Average Capacity 5 | 5 5 5 5 Most Carried 5 | 5 5 5 5 Average Carried 4 | 4 4 4 4 Final Capacity 5 | 5 5 5 5 Final Carried 5 | 4 5 5 5 Class Distribution -------------------- 100% | Hacker-Mutant Dominant Class ---------------- Hacker-Mutant | -10/Materials Hacker-Mutant | -10/Mines Hacker-Mutant | -10/Subcaves Resources | -11 -10 -10 -10 ----------- Run | Yrd Mat Min Sub Matter Collected 565 | 250 110 100 105 Remotely . | . . . . Salvage Created 1226 | 189 650 157 230 Parts 82 | 16 38 14 14 Haulers Intercepted 2 | . 2 . . Recyclers Shooed . | . . . . Parts Field Recycled . | . . . . Retrieved Matter . | . . . . Parts Self-Destructed . | . . . . Prevented . | . . . . Parts Restored . | . . . . Kills | -11 -10 -10 -10 ------- Run | Yrd Mat Min Sub Combat Hostiles Destroyed 30 | . 10 7 13 Guns 27 | . 9 7 11 Cannons 2 | . . . 2 Classes Destroyed 11 | 2 6 . 3 Worker 1 | . 1 . . Builder 3 | . 3 . . Tunneler 7 | 5 2 . . Hauler 2 | . 2 . . Recycler 1 | 1 . . . Turret 2 | . . . 2 Watcher 3 | . 3 . . Swarmer 9 | . 2 3 4 Grunt 12 | . 8 4 . Sentry 1 | . . . 1 Subdweller 8 | . . . 8 Best Kill Streak 8 | 4 6 2 8 Combat Bots Only 6 | . 2 2 6 Max Kills in Single Turn 2 | 1 1 1 2 Gunslinging 1 | . . . 1 Exploded . | . . . . Melee . | . . . . Uniques/NPCs Destroyed . | . . . . Combat | -11 -10 -10 -10 -------- Run | Yrd Mat Min Sub Hostile Shots Fired 148 | . 49 15 84 Missed 54 | . 18 5 31 Hits 94 | . 31 10 53 Projectile 94 | . 31 10 53 Critical Strikes 1 | . . . 1 Damage Taken 848 | . 236 67 545 Core 261 | . 66 16 179 Absorbed by Shields . | . . . . Ignored by Resistances 511 | . 147 43 321 Core Remaining (%) 100 | 100 . . . Volleys Fired 157 | 7 58 9 83 Largest 2 | 2 2 2 2 Hottest 165 | 100 130 130 165 Shots Fired 273 | 14 110 18 131 Gun 259 | 14 110 18 117 Cannon 10 | . . . 10 Launcher . | . . . . Special 4 | . . . 4 Kinetic . | . . . . Thermal 258 | 14 110 18 116 Explosive . | . . . . Electromagnetic 15 | . . . 15 Robot Hit Streak 55 | 10 42 24 55 Robot Miss Streak 6 | . 3 6 3 Penetration Max . | . . . . Secondary Targets 4 | . 1 1 2 Max Gunslinging Chain 1 | . 1 1 1 Shots Hit Robots 182 | 10 97 16 59 Core Hits 151 | 7 37 32 75 Critical Kills . | . . . . Critical Parts Destroyed . | . . . . Critical Strikes 9 | . 9 . . Burn 9 | . 9 . . Melee Attacks . | . . . . Impact . | . . . . Slashing . | . . . . Piercing . | . . . . Sneak Attacks . | . . . . Combat Hostiles . | . . . . Follow-up Attacks . | . . . . Damage Inflicted 2798 | 124 1219 233 1222 Guns 2584 | 124 1212 233 1015 Cannons 183 | . . . 183 Explosions . | . . . . Melee . | . . . . Ramming 7 | . 7 . . Kinetic . | . . . . Thermal 2791 | 124 1212 233 1222 Explosive . | . . . . Electromagnetic . | . . . . Impact . | . . . . Slashing . | . . . . Piercing . | . . . . Highest Corruption . | . . . . Average Corruption . | . . . . Corruption Purged . | . . . . Corruption Blocked . | . . . . Overload Shots . | . . . . Overflow Damage . | . . . . Projectiles . | . . . . Explosions . | . . . . Melee . | . . . . Knockbacks . | . . . . Impact . | . . . . Kinetic . | . . . . Secondary . | . . . . Self-Inflicted Damage 3 | . 3 . . Shots . | . . . . Rammed 1 | . 1 . . Targets Rammed 1 | . 1 . . Kicked . | . . . . Crushed . | . . . . Highest Temperature 423 | 72 423 276 280 Average Temperature 117 | 27 137 125 73 Received Heat Transfer 522 | . 201 42 279 Effects 10 | . 10 . . Shutdowns 4 | . 4 . . Energy Bleed 2 | . 2 . . Damage (minor) 1 | . 1 . . Damage (major) 3 | . 3 . . Siege Activations . | . . . . Martial Activations . | . . . . Shielding Activations . | . . . . Robots Disrupted . | . . . . Combat Hostiles . | . . . . Robots Corrupted . | . . . . Combat Hostiles . | . . . . Parts Fried . | . . . . Impact Corruptions . | . . . . Robots Melted 2 | . 2 . . Combat Hostiles 1 | . 1 . . Parts Melted 14 | . 13 . 1 Heat Transferred 6170 | 370 4074 300 1426 Parts Sabotaged . | . . . . Parts Stolen . | . . . . Parts Stripped . | . . . . Power Chain Reactions . | . . . . Alert | -11 -10 -10 -10 ------- Run | Yrd Mat Min Sub Maximum Alert Level . | . . . . Low Security (%) 100 | 100 100 100 . Level 1 . | . . . . Level 2 . | . . . . Level 3 . | . . . . Level 4 . | . . . . Level 5 . | . . . . High Security . | . . . . Max Security . | . . . . Peak Influence 56 | 15 50 56 . Initial . | . . . . Average 9 | 2 7 17 . Influence Increases 720 | 30 317 203 170 Destroy 0b10 Robot/C 500 | . 200 160 140 Destroy 0b10 Robot/NC 85 | 30 55 . . Destroy Leader 100 | . 60 40 . Allied During Kill 3 | . . 3 . Successful Hack 2 | . 2 . . Lose Combat Pursuer 30 | . . . 30 Influence Decreases 720 | 30 317 168 205 Entered New Map 24 | . . . 24 Time Decay 646 | 30 297 168 151 Lost Part 50 | . 20 . 30 Squads Dispatched 1 | . 1 . . Investigation 1 | . 1 . . Extermination . | . . . . Reinforcement . | . . . . Assault . | . . . . Garrison . | . . . . Intercept . | . . . . Searches Triggered . | . . . . Construction Impeded . | . . . . Haulers Reinforced . | . . . . Active Scanning Responses . | . . . . Cargo Convoy Interrupts . | . . . . Stealth | -11 -10 -10 -10 --------- Run | Yrd Mat Min Sub Distress Signals 1 | . 1 . . Communications Jammed . | . . . . Distress Signals . | . . . . Times Spotted 45 | . 18 8 19 Peak Tracking Total 6 | . 3 2 6 Tactical Retreats 1 | . . . 1 Traps | -11 -10 -10 -10 ------- Run | Yrd Mat Min Sub Traps Triggered 1 | . . . 1 Indirectly . | . . . . Trap Hack Attempts . | . . . . Triggered . | . . . . Disarmed . | . . . . Reprogrammed . | . . . . Reused . | . . . . Traps Extracted . | . . . . Installed . | . . . . Triggered . | . . . . Machines | -11 -10 -10 -10 ---------- Run | Yrd Mat Min Sub Machines Disabled 1 | . . . 1 Max in Single Turn 1 | . . . 1 Machines Repaired . | . . . . Machines Dismantled . | . . . . Machines Sabotaged . | . . . . Overloaded Fab Kills . | . . . . Hacking | -11 -10 -10 -10 --------- Run | Yrd Mat Min Sub Machines Accessed 9 | . 7 1 1 Terminals 7 | . 6 1 . Fabricators . | . . . . Repair Stations . | . . . . Recycling Units 1 | . 1 . . Scanalyzers . | . . . . Garrison Access . | . . . . Total Hacks 11 | . 9 1 1 Successful 10 | . 8 1 1 Failed 1 | . 1 . . Catastrophic . | . . . . Database Lockouts . | . . . . Manual 14 | . 13 1 . Terminals 8 | . 7 1 . Fabricators . | . . . . Repair Stations . | . . . . Recycling Units 2 | . 2 . . Scanalyzers . | . . . . Garrison Access . | . . . . Terminal Hacks 1 | . . . 1 Proto ID Catalog 1 | . . . 1 Fabricator Hacks . | . . . . Repair Station Hacks . | . . . . Recycling Unit Hacks 2 | . 2 . . Retrieve Components 2 | . 2 . . Scanalyzer . | . . . . Garrison Access Hacks . | . . . . Unauthorized Hacks 7 | . 6 1 . Terminals 7 | . 6 1 . Botnet 7 | . 6 1 . Fabricators . | . . . . Repair Stations . | . . . . Recycling Units . | . . . . Scanalyzers . | . . . . Garrison Access . | . . . . Data Cores Recovered . | . . . . Used . | . . . . Hacking Detections 2 | . 2 . . Full Trace Events 1 | . 1 . . Feedback Events . | . . . . Feedback Blocked . | . . . . Robot Schematics Acquired . | . . . . Robots Built . | . . . . Authchips . | . . . . Time . | . . . . Total Robot Build Rating . | . . . . Part Schematics Acquired . | . . . . Parts Built . | . . . . Authchips . | . . . . Time . | . . . . Total Part Build Rating . | . . . . Part Studies Acquired . | . . . . Parts Repaired . | . . . . Time . | . . . . Parts Recycled . | . . . . Recycled Matter . | . . . . Retrieved Matter . | . . . . Retrieved Components 11 | . 11 . . Parts Scanalyzed . | . . . . Part Schematics Acquired . | . . . . Parts Damaged . | . . . . Bothacking | -11 -10 -10 -10 ------------ Run | Yrd Mat Min Sub Used RIF Installer . | . . . . Robots Hacked . | . . . . Non-combat . | . . . . Combat . | . . . . Robot Hacks Applied . | . . . . Relay Couplers Released . | . . . . Fabnet Peak Effective % . | . . . . Robots Rewired . | . . . . Allies Hacked . | . . . . Hacks Repelled . | . . . . Allies | -11 -10 -10 -10 -------- Run | Yrd Mat Min Sub Total Allies 5 | . . 5 . Largest Group 5 | . . 5 . Highest-Rated Group 82 | . . 82 . Highest-Rated Ally 31 | . . 31 . Total Orders . | . . . . Ally Attacks 5 | . . 5 . Total Damage 25 | . . 25 . Kills 1 | . . 1 . Allies Corrupted . | . . . . Allies Melted . | . . . . Intel | -11 -10 -10 -10 ------- Run | Yrd Mat Min Sub Active Infowar (turns) 1357 | . 881 324 152 Sensors 9 | . . 9 . Structural 1357 | . 881 324 152 Robot Analysis Total . | . . . . Derelict Logs Recovered 3 | . . 2 1 Drone Launches . | . . . . Drone Recoveries . | . . . . Exploration | -11 -10 -10 -10 ------------- Run | Yrd Mat Min Sub Turns Passed 3012 | 86 1238 324 1364 Spaces Moved 3936 | 64 1460 656 1756 Core 43 | 43 . . . Treads . | . . . . Legs . | . . . . Wheels 355 | 21 334 . . Hover 511 | . 511 . . Flight 3027 | . 615 656 1756 Fastest Speed 34 | 50 37 34 34 Average Speed 53 | 79 66 38 46 Slowest Speed 200 | 100 200 117 200 Overloaded Moves . | . . . . Propulsion Burnouts . | . . . . Robots Hopped 19 | . 8 11 . Potential Cave-ins . | . . . . Cave-ins Triggered . | . . . . Exploration Rate (%) 68 | 4 98 99 72 Regions Visited 3 Branch Regions 2 Pre-discovered Areas 1 | . . . 1 Known Exits Taken 3 | 1 1 1 . Unknown Exits Taken . | . . . . Scrap Searched 12 | . . 1 11 Spaces Dug 3 | . . . 3 Terrain Destroyed 3 | . . . 3 Melee . | . . . . Projectile 3 | . . . 3 AOE . | . . . . Terrain Rammed . | . . . . Walls Destroyed . | . . . . Machines Disabled . | . . . . Actions | -11 -10 -10 -10 --------- Run | Yrd Mat Min Sub Total 4556 | 83 1613 698 2162 Wait 395 | . 75 28 292 Move 3897 | 63 1443 635 1756 Hop 17 | . 8 9 . Pick Up 20 | 7 4 2 7 Fast Attach 17 | 3 8 1 5 Attach 10 | 2 2 1 5 Detach 4 | . 2 . 2 Swap 13 | . 3 6 4 Drop 25 | 1 9 7 8 Fire 157 | 7 58 9 83 Melee . | . . . . Ram 1 | . 1 . . Kick . | . . . . Crush . | . . . . Escape Stasis . | . . . . Rewire . | . . . . Trap . | . . . . Miscellaneous . | . . . . Route ------- -11/Scrapyard -10/Materials (discovered 6 exits: *Mat x3 / *Min x2 / *Sub) -10/Mines (discovered 4 exits: *Mat x2 / *Exi / *Sub) -10/Subcaves (discovered 3 exits: *Mat x2 / *Rec) History --------- Turn | Location | Event 6 | -11/Scrapyard | Identified exit to Materials 6 | -11/Scrapyard | Discovered exit to Materials (range 16) 87 | -11/Scrapyard | Entered Materials 87 | -10/Materials | Evolved 1 slot: Propulsion x1 204 | -10/Materials | Identified exit to Mines 204 | -10/Materials | Discovered exit to Mines (range 11) 301 | -10/Materials | Build established: Hacker-Mutant 384 | -10/Materials | Identified exit to Materials 384 | -10/Materials | Discovered exit to Materials (range 11) 399 | -10/Materials | Discovered exit to Mines (range 7) 458 | -10/Materials | Identified exit to Subcaves 458 | -10/Materials | Discovered exit to Subcaves (range 11) 512 | -10/Materials | Discovered exit to Materials (range 13) 615 | -10/Materials | Discovered exit to Materials (range 5) 1325 | -10/Materials | Entered Mines 1329 | -10/Mines | Assisted by bots powering up and referring to "LRC-V3" 1403 | -10/Mines | Discovered exit to Materials (range 8) 1428 | -10/Mines | Learned Materials stockpile data 1429 | -10/Mines | Learned Materials trap positions 1520 | -10/Mines | Deemed a non-threat by the Exiles lab entrance 1520 | -10/Mines | Identified exit to Exiles 1520 | -10/Mines | Discovered exit to Exiles (range 5) 1583 | -10/Mines | Discovered exit to Materials (range 9) 1647 | -10/Mines | Discovered exit to Subcaves (range 6) 1649 | -10/Mines | Entered Subcaves 1650 | -10/Subcaves | Identified exit to Recycling 1650 | -10/Subcaves | Discovered exit to Recycling (range 8) 1715 | -10/Subcaves | Identified exit to Materials 1715 | -10/Subcaves | Discovered exit to Materials (range 15) 1738 | -10/Subcaves | Ambushed by Subdweller buried in earth 1804 | -10/Subcaves | Core integrity fell below 50% 1840 | -10/Subcaves | Shifting Twisted Machinery released Piercing Trap 1993 | -10/Subcaves | Discovered exit to Materials (range 13) 2063 | -10/Subcaves | Disturbed a concealed Subdweller 2087 | -10/Subcaves | Core integrity fell below 20% 2123 | -10/Subcaves | Lost 4 parts (1n3w) 2133 | -10/Subcaves | Shifting Twisted Machinery released Shrapnel Trap 2134 | -10/Subcaves | Shifting Twisted Machinery released Sub. Laser 2264 | -10/Subcaves | A swath of the cavern ceiling suddenly collapsed 2889 | -10/Subcaves | Visited 4L-MR0's lab 2925 | -10/Subcaves | Found Powered Cannon 2926 | -10/Subcaves | Attached Powered Cannon, gained temporary slot: Power 3013 | -10/Subcaves | Destroyed by ZX-6HQ(R) with Subdweller Beam Cannon Last Messages --------------- Power Bank Rainbow Chip VL-GR5's Exoskeleton "Deathgrip" Powered Cannon 02894_ 4L-MR0 mumbles to no one in particular: "Damn Subs sneaking around stealing my stuff." 02895_ 4L-MR0 mumbles: "I'm surprised some of them are even willing to come in here given their fear of my usual visitors." 02900_ Testing Chamber breached. 02908_ 4L-MR0 mumbles: "Who knows where that last prototype ended up, probably tossed aside somewhere as if it were useless junk..." 02923_ Dropped Battle Cannon. 02924_ Dropped Hvy. Riot Gun. 02925_ Acquired Powered Cannon. 02926_ Core temporarily expanded with Power slot. 02927_ Dropped Sub. Laser. 02928_ Acquired Hvy. Riot Gun. Map ----- +----------------------------------------------------+ | ??????# " #??# ### ##??????????????????? | | ??????#######??# ## ##??????????????????? | | ???????????????## ### ##?????????????????? | | ????????????????# #?## ##????????????????? | | ????????????????####??# ##???????????????? | | ??????????????????????# #???????????????? | | ??????????????????##### ##???????????????? | | ????????????????### # ##????????????????? | | ????????????????# #?????????????????? | | ????????????????# # #????????????????? | | ????????????????## ## ## #????????????????? | | ????????????????# ### #? #???????????????? | | ????????????????## #?## ## #??????????????? | | ????????????????# #??# # # ##??????????????? | | ????????????????## #??# # #???????????????? | | ????????????????# #??### ? ???????????????? | | ????????????????# ##????? ### #??????????????? | | ????????????????## #????? #?? ???????????????? | | ????????????????# ####??? #??????????????????? | | ????????????????# # #### #??????????????????? | | ????????????????#### ## #??????????????????? | | ???????????????????# # # #??????????????????? | | ???????????????????# #?????#?????????????? | | ???????????????????##### R ### #?????????????? | | ???????????????????????# R #?????????????? | | ???????????????????????# @;# #?????????????? | | ???????????????????????#####? ##?????????????? | | ?????????????????????????????? #??????????????? | | ??????????????????????????????? ##??????????????? | | ????????????????????????????????#???????????????? | | ????????????????????????????????????????????????? | | ????????????????????????????????????????????????? | | ????????????????????????????????????????????????? | | ????????????????????????????????????????????????? | | ????????????????????????????????????????????????? | | ????????????????????????????????????????????????? | | ????????????????????????????????????????????????? | | ????????????????????????????????????????????????? | | ????????????????????????????????????????????????? | | ????????????????????????????????????????????????? | | ????????????????????????????????????????????????? | | ????????????????????????????????????????????????? | | ????????????????????????????????????????????????? | | ????????????????????????????????????????????????? | | ????????????????????????????????????????????????? | | ????????????????????????????????????????????????? | | ????????????????????????????????????????????????? | | ????????????????????????????????????????????????? | | ##??????????????????????????????????????????????? | | ###?????????????????????????????????????????????? | +----------------------------------------------------+ Best States ------------- Heat Dissipation 25 Energy Generation 14 Energy Capacity 160 Matter Stores 300 Matter Capacity 300 Sight Range 16 Robot Scan Range 14 Terrain Scan Density 10 Resistance: KI 35 Resistance: TH 35 Resistance: EX 35 Resistance: EM 35 Resistance: I 35 Resistance: S 35 Resistance: P 35 Evasion (%) 63 Offensive Hacking 20 Item Schematics ----------------- None Robot Schematics ------------------ None Fabricated ------------ Nothing Repaired ---------- Nothing Studied --------- None Alien Tech Used ----------------- None Achievements -------------- None Challenges ------------ None Game ------ Seed SurgeDisposableBuckler Manual? 0 Play Time 00:35:18 Cumulative 185.4 hours Start 2025.12.10 @ 11:44:03 End 2025.12.10 @ 12:08:48 Sessions 1 Manual Loads 0 Difficulty Explorer Special Mode None Game No. 263 Rogue 0 Adventurer 0 Explorer 263 Win Type - Total 0 Types 0/0/0/0/0/0/0/0/0/0 Lore% 70 Gallery% 67 Achievement% 53 Wizard Run 0 Options --------- Layout 1 ASCII 0 Keyboard 0 Movement Mouse Keybinds 0 Fullscreen 1 Font 24/Smallcaps Map View 50x35 Zoom Use 0% Tactical HUD 1 Map Filters NONE Filters NONE Steam 1 RUN: cb4c8c85-0437-4e2f-84ac-6f323cf9bdb1